bitfinex-derivatives/quotes_BTCF0:USTF0_20210404
["timestamp","ask_amount","ask_price","bid_price","bid_amount"]
[1617531408507,0.40456573,57545.0,57544.0,0.71716916]
[1617531408709,0.40456573,57545.0,57544.0,0.86005916]
[1617531409211,0.10725655,57545.0,57544.0,0.86005916]
[1617531409808,0.11726393,57545.0,57544.0,0.86005916]
[1617531410209,0.4046395,57545.0,57544.0,0.86005916]
[1617531411408,0.4046395,57545.0,57544.0,0.71716916]
[1617531411810,0.4046395,57545.0,57544.0,1.08314863]
[1617531417415,0.4046395,57545.0,57544.0,1.23976863]
[1617531417917,0.10725655,57545.0,57544.0,2.23976863]
[1617531418317,0.10725655,57545.0,57544.0,1.23976863]
[1617531418318,0.10933843,57545.0,57544.0,1.23976863]
[1617531418716,0.11231271,57545.0,57544.0,1.23976863]
[1617531422319,0.11231271,57545.0,57544.0,2.23976863]
[1617531422719,0.10933604,57545.0,57544.0,2.74814401]
[1617531423520,0.10725655,57545.0,57544.0,2.74814401]
[1617531425421,0.10725655,57545.0,57544.0,1.74814401]
[1617531426423,0.11230435,57545.0,57544.0,1.08314863]
[1617531427023,0.11725172,57545.0,57544.0,1.08314863]
[1617531431628,0.40411972,57545.0,57544.0,1.08314863]
[1617531434133,0.11724954,57545.0,57544.0,1.08314863]
[1617531434532,0.11724954,57545.0,57544.0,1.17485516]
[1617531437036,0.40467724,57545.0,57544.0,1.68406007]
[1617531440136,0.40467724,57545.0,57544.0,1.59235354]
[1617531441038,0.40467724,57545.0,57544.0,1.69961009]
[1617531447249,3.28677724,57545.0,57544.0,1.69961009]
[1617531448847,0.40467724,57545.0,57544.0,1.69961009]
[1617531453155,0.40467724,57545.0,57544.0,1.59235354]
[1617531456458,0.40467724,57545.0,57544.0,1.70347354]
[1617531462965,0.40467724,57545.0,57544.0,1.59235354]
[1617531466871,2.99337724,57545.0,57544.0,1.59235354]
[1617531467671,2.99337724,57545.0,57544.0,2.59235354]
[1617531468874,2.99337724,57545.0,57544.0,1.59235354]
[1617531472377,2.88612069,57545.0,57544.0,1.59235354]
[1617531472977,0.29742069,57545.0,57544.0,1.59235354]
[1617531473177,0.40467724,57545.0,57544.0,1.59235354]
[1617531481289,0.40467724,57545.0,57544.0,2.71981354]
[1617531481689,0.10725655,57545.0,57544.0,2.71981354]
[1617531482090,0.40486384,57545.0,57544.0,2.71981354]
[1617531482490,0.10725655,57545.0,57544.0,2.71981354]
[1617531482690,0.10725655,57545.0,57544.0,1.71981354]
[1617531482890,0.10725655,57545.0,57544.0,1.59235354]
[1617531483090,0.40477066,57545.0,57544.0,1.59235354]
[1617531484191,3.21657066,57545.0,57544.0,1.59235354]
[1617531487298,0.40477066,57545.0,57544.0,2.59235354]
[1617531487499,0.40477066,57545.0,57544.0,4.09235354]
[1617531487698,0.29751411,57545.0,57544.0,7.25875354]
[1617531487899,0.00208357,57546.0,57544.0,8.0290642]
[1617531488099,0.00208357,57546.0,57544.0,4.8626642]
[1617531488299,0.00208608,57554.0,57547.0,1.0]
[1617531488500,0.00208608,57554.0,57549.0,3.1502]
[1617531488700,0.00208704,57556.0,57553.0,1.89407821]
[1617531488900,0.00208704,57556.0,57553.0,4.51513821]
[1617531489103,0.00208704,57556.0,57554.0,0.27]
[1617531489301,0.00208754,57557.0,57555.0,3.00132016]
[1617531489501,0.00208754,57557.0,57556.0,0.2]
[1617531489701,0.0020883,57559.0,57556.0,3.36404563]
[1617531489900,0.0020883,57559.0,57557.0,1.5]
[1617531490100,0.00507159,57560.0,57557.0,2.5]
[1617531490301,0.00507159,57560.0,57558.0,0.27]
[1617531490500,0.00507159,57560.0,57559.0,1.0]
[1617531490700,0.00507159,57560.0,57559.0,2.32381037]
[1617531491000,0.00507159,57560.0,57559.0,2.65493001]
[1617531491501,0.00507938,57561.0,57559.0,2.65493001]
[1617531491901,0.01006103,57561.0,57560.0,1.38520446]
[1617531492303,0.10725655,57563.0,57560.0,2.14594088]
[1617531492702,0.10725655,57563.0,57562.0,1.0]
[1617531493105,0.10725655,57563.0,57562.0,2.14260364]
[1617531493506,0.10725655,57563.0,57562.0,2.24986019]
[1617531494306,0.10725655,57563.0,57562.0,1.24986019]
[1617531495707,0.10725655,57563.0,57562.0,2.24986019]
[1617531501318,0.10725655,57563.0,57562.0,1.24986019]
[1617531501620,0.10725655,57563.0,57562.0,2.24986019]
[1617531524849,0.10725655,57563.0,57562.0,2.75654177]
[1617531535264,0.00208553,57574.0,57562.0,2.75654177]
[1617531535466,0.00209308,57567.0,57562.0,2.75654177]
[1617531535666,0.00209308,57567.0,57562.0,1.75654177]
[1617531535868,0.00209308,57567.0,57566.0,1.32216363]
[1617531536066,0.00209308,57567.0,57566.0,2.48901363]
[1617531536266,0.00209308,57567.0,57566.0,2.82012251]
[1617531541369,0.00209308,57567.0,57566.0,4.32012251]
[1617531541570,0.00209602,57568.0,57566.0,4.32012251]
[1617531541970,0.00209602,57568.0,57567.0,1.0]
[1617531542173,0.00209729,57571.0,57568.0,1.5]
[1617531542372,0.00209729,57571.0,57570.0,0.30725655]
[1617531542572,0.00209826,57574.0,57570.0,1.6293114]
[1617531542773,0.00209826,57574.0,57570.0,1.8993114]
[1617531542974,0.00209874,57575.0,57570.0,3.26879994]
[1617531543173,0.00209874,57575.0,57573.0,1.0]
[1617531543373,0.00209874,57575.0,57574.0,1.0]
[1617531543575,0.00509541,57575.0,57574.0,1.27]
[1617531543973,0.00209845,57575.0,57574.0,2.65313911]
[1617531544173,0.00209845,57575.0,57574.0,6.16243911]
[1617531544775,0.00209853,57576.0,57574.0,6.16243911]
[1617531545175,0.00209853,57576.0,57575.0,1.0]
[1617531545375,0.00209853,57576.0,57575.0,2.61734711]
[1617531545575,0.00209853,57576.0,57575.0,2.88734711]
[1617531545776,0.00209557,57579.0,57575.0,2.74477311]
[1617531546178,0.00209557,57579.0,57578.0,0.81236071]
[1617531546376,0.00209557,57579.0,57578.0,1.05822726]
[1617531546576,0.00209557,57579.0,57578.0,2.32822726]
[1617531547177,0.00209557,57579.0,57578.0,2.38933042]
[1617531547577,0.00508779,57579.0,57578.0,2.48098553]
[1617531547978,0.00508779,57579.0,57578.0,2.38933042]
[1617531548378,0.00508779,57579.0,57578.0,2.48098585]
[1617531548881,0.00209482,57579.0,57578.0,2.38933042]
[1617531549983,0.00209589,57582.0,57578.0,2.89703102]
[1617531550382,0.00209589,57582.0,57579.0,1.0]
[1617531550783,0.00209589,57582.0,57581.0,1.81231978]
[1617531551194,0.00209589,57582.0,57581.0,1.14341986]
[1617531551409,2.96269589,57582.0,57581.0,1.14341986]
[1617531551620,2.96568922,57582.0,57581.0,1.14341986]
[1617531552022,3.259888,57582.0,57581.0,0.69664398]
[1617531552483,0.65834146,57582.0,57581.0,0.69664398]
[1617531552683,0.76559801,57582.0,57581.0,0.69664398]
[1617531553385,1.01001161,57582.0,57581.0,0.69664398]
[1617531553784,0.76559801,57582.0,57581.0,0.69664398]
[1617531554183,1.01001117,57582.0,57581.0,0.69664398]
[1617531555185,1.01001117,57582.0,57581.0,3.22274398]
[1617531557988,1.01001117,57582.0,57581.0,0.69664398]
[1617531558187,1.01001117,57582.0,57581.0,4.10204398]
[1617531558586,0.90275462,57582.0,57581.0,4.10204398]
[1617531558987,0.299288,57582.0,57581.0,4.64054707]
[1617531560789,0.299288,57582.0,57581.0,1.23514707]
[1617531561487,0.299288,57582.0,57581.0,1.14349704]
[1617531562799,0.65844717,57582.0,57581.0,1.14349704]
[1617531564091,0.65844717,57582.0,57581.0,0.69664398]
[1617531566594,0.76570372,57582.0,57581.0,0.69664398]
[1617531567195,1.0101122,57582.0,57581.0,0.69664398]
[1617531567595,0.76570372,57582.0,57581.0,0.69664398]
[1617531567995,1.0101119,57582.0,57581.0,0.69664398]
[1617531576505,1.0101119,57582.0,57581.0,0.42664398]
[1617531576907,2.5101119,57582.0,57581.0,0.3655439]
[1617531577109,3.5101119,57582.0,57581.0,0.3655439]
[1617531577509,3.94866264,57582.0,57576.0,0.36578202]
[1617531577707,1.09591618,57577.0,57574.0,0.36578808]
[1617531577909,1.22995618,57577.0,57574.0,0.36578808]
[1617531578307,1.22995618,57577.0,57575.0,0.27]
[1617531578709,0.10725655,57576.0,57575.0,0.27]
[1617531578908,3.79825655,57576.0,57575.0,0.27]
[1617531579108,5.1383733,57576.0,57573.0,0.36579549]
[1617531579409,5.1383733,57576.0,57574.0,0.27]
[1617531579610,0.24444513,57575.0,57574.0,0.63579388]
[1617531579809,0.24444513,57575.0,57574.0,0.36579388]
[1617531580011,0.90199755,57575.0,57574.0,0.69690508]
[1617531580510,0.90199755,57575.0,57574.0,0.63579388]
[1617531580810,0.90199755,57575.0,57574.0,0.69690501]
[1617531583014,0.90199755,57575.0,57574.0,0.33111113]
[1617531588724,0.90199755,57575.0,57574.0,0.69671389]
[1617531589325,0.90199755,57575.0,57574.0,0.33111113]
[1617531591327,0.90199755,57575.0,57574.0,0.27]
[1617531591727,0.90199755,57575.0,57572.0,0.01]
[1617531591928,1.34001936,57575.0,57572.0,0.01]
[1617531592328,0.65707836,57573.0,57572.0,0.01]
[1617531593528,0.65707836,57573.0,57572.0,0.07111199]
[1617531593728,0.24444513,57575.0,57572.0,0.07111199]
[1617531593929,0.90169492,57573.0,57572.0,0.01]
[1617531594329,0.65724685,57573.0,57572.0,0.4366592]
[1617531594528,0.24444765,57575.0,57572.0,0.4366592]
[1617531594728,0.24444765,57575.0,57572.0,0.4266592]
[1617531594928,4.23638793,57576.0,57572.0,0.4266592]
[1617531594929,0.90175773,57573.0,57572.0,0.4266592]
[1617531595329,0.65731023,57573.0,57572.0,0.37554729]
[1617531595728,0.65731023,57573.0,57572.0,0.43665914]
[1617531598434,0.65731023,57573.0,57572.0,0.42665914]
[1617531598864,0.65731023,57573.0,57543.0,1.0]
[1617531598865,1.09510303,57573.0,57568.0,0.36547078]
[1617531599268,0.65649881,57569.0,57568.0,0.27]
[1617531599658,0.65649881,57569.0,57555.0,0.51761181]
[1617531599659,0.65649881,57569.0,57565.0,0.3655033]
[1617531600037,0.43758015,57570.0,57568.0,0.27]
[1617531600236,0.43758015,57570.0,57564.0,0.36550946]
[1617531600443,2.6452,57568.0,57564.0,0.36550946]
[1617531600652,2.6452,57568.0,57565.0,0.27]
[1617531600837,0.10725655,57566.0,57563.0,0.36550226]
[1617531601037,0.10725655,57566.0,57564.0,0.36551199]
[1617531601237,0.10725655,57566.0,57564.0,0.63551199]
[1617531601436,0.10725655,57566.0,57564.0,0.06112375]
[1617531601437,0.39608501,57565.0,57564.0,0.06112375]
[1617531601838,0.44971341,57565.0,57564.0,0.27]
[1617531602339,0.44971341,57565.0,57563.0,0.01]
[1617531602539,0.44971341,57565.0,57564.0,0.27]
[1617531602740,0.50919821,57565.0,57564.0,0.27]
[1617531602939,0.50919821,57565.0,57563.0,0.27]
[1617531603141,0.50919821,57565.0,57561.0,0.27]
[1617531603341,0.80719606,57565.0,57561.0,0.27]
[1617531603541,0.80719606,57565.0,57560.0,0.36510684]
[1617531603742,0.29803723,57563.0,57561.0,0.27]
[1617531604343,0.29803723,57563.0,57562.0,0.06112414]
[1617531604745,0.29803723,57563.0,57562.0,0.07112414]
[1617531613356,0.29803723,57563.0,57562.0,0.01]
[1617531613756,0.29803723,57563.0,57561.0,0.27]
[1617531614054,0.29803723,57563.0,57562.0,0.01]
[1617531614356,0.29843563,57562.0,57561.0,0.27]
[1617531614755,0.29843243,57561.0,57559.0,0.36503995]
[1617531614956,0.29843243,57561.0,57560.0,0.27]
[1617531615155,0.10725655,57566.0,57560.0,0.27]
[1617531616155,0.38128316,57565.0,57560.0,0.27]
[1617531616957,0.24450236,57564.0,57560.0,0.27]
[1617531617557,0.13678,57565.0,57560.0,0.27]
[1617531617857,0.24450296,57564.0,57560.0,0.27]
[1617531618258,0.13678,57565.0,57560.0,0.27]
[1617531618658,0.24450464,57564.0,57560.0,0.27]
[1617531619158,0.13678,57565.0,57560.0,0.27]
[1617531619666,0.35823263,57563.0,57560.0,0.27]
[1617531619864,0.35817682,57562.0,57559.0,0.01]
[1617531620267,0.35817682,57562.0,57558.0,0.27]
[1617531620469,0.29849579,57560.0,57558.0,0.27]
[1617531620762,0.29849912,57559.0,57558.0,0.27]
[1617531620962,0.40575567,57559.0,57558.0,0.27]
[1617531622063,0.40575567,57559.0,57557.0,0.37513359]
[1617531622265,0.40575567,57559.0,57558.0,0.27]
[1617531622664,0.40575567,57559.0,57557.0,0.36513359]
[1617531622865,0.40575567,57559.0,57558.0,0.27]
[1617531623666,0.10725655,57559.0,57558.0,0.27]
[1617531627668,0.10725655,57559.0,57558.0,3.5125]
[1617531628669,0.4061813,57559.0,57558.0,3.87808549]
[1617531630070,0.4061813,57559.0,57558.0,0.63558549]
[1617531630872,4.0844813,57559.0,57558.0,0.63558549]
[1617531632573,4.44327968,57559.0,57558.0,0.63558549]
[1617531645690,4.44327968,57559.0,57558.0,0.27]
[1617531646190,4.44327968,57559.0,57557.0,0.36567517]
[1617531646392,0.85135268,57558.0,57557.0,0.36567517]
[1617531646792,0.85135268,57558.0,57557.0,0.37567517]
[1617531648191,0.85135268,57558.0,57557.0,0.43680353]
[1617531650796,1.29068634,57558.0,57557.0,0.43680353]
[1617531656002,0.85135268,57558.0,57557.0,0.43680353]
[1617531661308,4.11655268,57558.0,57557.0,0.43680353]
[1617531661707,4.11655268,57558.0,57557.0,0.37567517]
[1617531662115,4.55622654,57558.0,57557.0,0.82343051]
[1617531662508,4.55622654,57558.0,57557.0,0.37567517]
[1617531662907,4.55622654,57558.0,57557.0,0.88455773]
[1617531663207,4.55622654,57558.0,57557.0,0.82343001]
[1617531663609,4.55622654,57558.0,57557.0,0.88455771]
[1617531667217,4.55622654,57558.0,57557.0,0.43680287]
[1617531672924,4.55622654,57558.0,57557.0,0.88455677]
[1617531681933,4.66348309,57558.0,57557.0,0.88455677]
[1617531704067,4.78403309,57558.0,57557.0,0.88455677]
[1617531710277,4.66348309,57558.0,57557.0,0.88455677]
[1617531721389,1.39828309,57558.0,57557.0,0.88455677]
[1617531721791,1.39828309,57558.0,57557.0,4.44255677]
[1617531721989,1.20485221,57558.0,57557.0,4.44255677]
[1617531722389,1.81614332,57558.0,57557.0,4.53425044]
[1617531725094,1.44936865,57558.0,57557.0,4.53425044]
[1617531726016,1.00969479,57558.0,57557.0,5.04321624]
[1617531726211,1.00969479,57558.0,57557.0,5.15047279]
[1617531726397,1.00969479,57558.0,57557.0,4.64150699]
[1617531737006,1.00969479,57558.0,57557.0,1.08350699]
[1617531737407,1.00969479,57558.0,57557.0,0.99181332]
[1617531738008,3.66609479,57558.0,57557.0,0.99181332]
[1617531741513,1.00969479,57558.0,57557.0,0.99181332]
[1617531742312,1.00969479,57558.0,57557.0,4.16131332]
[1617531743115,1.00969479,57558.0,57557.0,4.25300394]
[1617531748122,1.00969479,57558.0,57557.0,4.14574739]
[1617531760331,1.00969479,57558.0,57557.0,5.14574739]
[1617531760531,0.90243824,57558.0,57557.0,6.84574739]
[1617531760930,0.01021444,57558.0,57557.0,7.49730467]
[1617531761331,0.00212469,57558.0,57557.0,6.49730467]
[1617531761531,0.00212469,57558.0,57557.0,7.49730467]
[1617531762132,0.00515895,57558.0,57557.0,7.49730467]
[1617531762331,0.00515895,57558.0,57557.0,4.32780467]
[1617531762933,0.00515895,57558.0,57557.0,4.18518291]
[1617531764836,0.00212457,57558.0,57557.0,4.75512096]
[1617531765035,0.00212457,57558.0,57557.0,7.93672096]
[1617531765836,0.00212457,57558.0,57557.0,8.07932681]
[1617531766255,0.00212495,57559.0,57557.0,8.07932681]
[1617531766637,0.00212495,57559.0,57557.0,7.07932681]
[1617531766837,0.00212504,57560.0,57557.0,7.07932681]
[1617531767037,0.00212504,57560.0,57558.0,1.0]
[1617531767236,0.00212504,57560.0,57559.0,2.32307586]
[1617531767436,0.00212504,57560.0,57559.0,2.59307586]
[1617531768037,0.00212504,57560.0,57559.0,3.2241266]
[1617531768438,0.00212504,57560.0,57559.0,2.33138315]
[1617531768638,0.00212504,57560.0,57559.0,1.76144821]
[1617531768838,0.00212504,57560.0,57559.0,2.76144821]
[1617531770440,0.10725655,57562.0,57559.0,2.76144821]
[1617531771044,0.10725655,57562.0,57561.0,1.32057489]
[1617531771442,0.10725655,57562.0,57561.0,1.59057489]
[1617531771642,0.10725655,57562.0,57561.0,2.59057489]
[1617531772344,0.10725655,57562.0,57561.0,2.6516906]
[1617531774847,0.10725655,57562.0,57561.0,2.14361108]
[1617531775048,0.10725655,57562.0,57561.0,1.27]
[1617531775348,0.10725655,57562.0,57561.0,2.59054884]
[1617531776550,0.10725655,57562.0,57561.0,1.59054884]
[1617531777352,0.1093785,57562.0,57561.0,1.59054884]
[1617531778560,3.7335785,57562.0,57561.0,1.59054884]
[1617531778764,3.73660865,57562.0,57561.0,1.59054884]
[1617531779661,3.73660865,57562.0,57561.0,1.08264544]
[1617531780056,3.73660865,57562.0,57561.0,1.59056259]
[1617531780458,3.7416581,57562.0,57561.0,1.08264544]
[1617531781256,4.03450067,57562.0,57561.0,1.08264544]
[1617531783759,0.10725655,57562.0,57561.0,1.08264544]
[1617531784159,0.11240752,57562.0,57561.0,1.59061984]
[1617531784358,0.11240752,57562.0,57561.0,5.18501984]
[1617531785260,0.11745606,57562.0,57561.0,4.76872224]
[1617531785660,0.11240721,57562.0,57561.0,4.76872224]
[1617531787461,0.10937716,57562.0,57561.0,5.27657015]
[1617531789965,0.10937716,57562.0,57561.0,1.68217015]
[1617531790162,3.17787716,57562.0,57561.0,1.68217015]
[1617531793969,3.17787716,57562.0,57561.0,1.24328573]
[1617531794168,3.17787716,57562.0,57561.0,1.51328573]
[1617531799274,3.17575655,57562.0,57561.0,1.51328573]
[1617531806088,3.17787887,57562.0,57561.0,1.51328573]
[1617531808391,3.17575655,57562.0,57561.0,2.51328573]
[1617531808591,0.10725655,57562.0,57561.0,2.51328573]
[1617531808989,0.10937947,57562.0,57561.0,2.51328573]
[1617531809190,0.10937947,57562.0,57561.0,5.02588573]
[1617531809390,0.10937947,57562.0,57561.0,4.93420893]
[1617531809990,0.10937947,57562.0,57561.0,5.02588435]
[1617531813291,0.10725655,57562.0,57561.0,5.02588435]
[1617531814592,0.10725655,57562.0,57561.0,5.18825435]
[1617531818396,0.10725655,57562.0,57561.0,4.18825435]
[1617531818796,0.10725655,57562.0,57561.0,5.18825435]
[1617531819300,0.11748612,57562.0,57561.0,5.18825435]
[1617531820097,0.10725655,57562.0,57561.0,5.18825435]
[1617531820498,0.1124219,57562.0,57561.0,5.18825435]
[1617531824305,0.1124219,57562.0,57561.0,2.67565435]
[1617531824704,3.5065219,57562.0,57561.0,2.67565435]
[1617531825305,3.5065219,57562.0,57561.0,2.81825449]
[1617531827907,3.5065219,57562.0,57561.0,2.65588449]
[1617531828307,3.5065219,57562.0,57561.0,2.51328435]
[1617531829509,3.51158792,57562.0,57561.0,2.51328435]
[1617531830407,3.50652242,57562.0,57561.0,2.51328435]
[1617531831708,3.50652242,57562.0,57561.0,1.51328435]
[1617531832111,3.51158759,57562.0,57561.0,1.51328435]
[1617531834114,3.80533873,57562.0,57561.0,2.62365435]
[1617531834717,3.50652433,57562.0,57561.0,2.76625282]
[1617531835116,3.50135655,57562.0,57561.0,2.76625282]
[1617531835716,3.50348465,57562.0,57561.0,2.76625282]
[1617531840025,3.50348465,57562.0,57561.0,2.65588282]
[1617531840624,0.0021281,57562.0,57561.0,4.01328435]
[1617531840824,0.0021281,57562.0,57561.0,7.54948435]
[1617531841026,0.00212919,57563.0,57561.0,7.45780893]
[1617531841425,0.00517089,57564.0,57562.0,2.55670712]
[1617531841426,0.00212961,57564.0,57562.0,2.55670712]
[1617531841626,0.00212961,57564.0,57562.0,4.05670712]
[1617531841829,0.00213121,57565.0,57563.0,3.22401167]
[1617531842328,0.00213196,57566.0,57564.0,2.95397541]
[1617531842728,0.00213219,57567.0,57565.0,3.22398267]
[1617531843127,0.00213219,57567.0,57566.0,3.06125379]
[1617531843327,3.10963219,57567.0,57566.0,3.06125379]
[1617531843527,3.10963219,57567.0,57566.0,3.33125379]
[1617531843727,3.11267793,57567.0,57566.0,2.49135169]
[1617531844027,3.11267793,57567.0,57566.0,2.76135169]
[1617531844228,3.11267793,57567.0,57566.0,2.8530123]
[1617531844628,3.11775264,57567.0,57566.0,2.8530123]
[1617531845129,3.11775264,57567.0,57566.0,2.76135169]
[1617531845428,3.11267896,57567.0,57566.0,2.76135169]
[1617531846630,3.10963104,57567.0,57566.0,2.76135169]
[1617531851234,0.00213104,57567.0,57566.0,2.76135169]
[1617531851635,0.00213231,57569.0,57566.0,2.76135169]
[1617531851835,0.00213231,57569.0,57566.0,6.49675169]
[1617531852035,0.00517768,57569.0,57568.0,2.32190923]
[1617531852435,0.0051777,57570.0,57568.0,2.65301545]
[1617531852837,0.0051777,57570.0,57568.0,1.65301545]
[1617531853337,0.01025331,57570.0,57569.0,2.38305838]
[1617531853536,0.01025331,57570.0,57569.0,1.38305838]
[1617531853737,0.3046197,57570.0,57569.0,1.65305838]
[1617531857442,0.01024909,57570.0,57569.0,1.65305838]
[1617531858242,0.01024909,57570.0,57569.0,2.65305838]
[1617531858442,0.01024909,57570.0,57569.0,1.65305838]
[1617531858743,0.01024909,57570.0,57569.0,2.65305838]
[1617531860549,0.01024909,57570.0,57569.0,1.65305838]
[1617531860747,0.13281909,57570.0,57569.0,1.65305838]
[1617531862148,0.42710503,57570.0,57569.0,1.65305838]
[1617531862650,0.13282073,57570.0,57569.0,1.65305838]
[1617531863052,0.42709863,57570.0,57569.0,1.65305838]
[1617531863452,0.13282027,57570.0,57569.0,1.65305838]
[1617531863651,0.01025027,57570.0,57569.0,1.65305838]
[1617531864252,0.30456489,57571.0,57569.0,1.65305838]
[1617531864654,0.30456489,57571.0,57570.0,1.382787]
[1617531864852,0.30456489,57571.0,57570.0,1.545847]
[1617531865053,0.30456489,57571.0,57570.0,1.815847]
[1617531865252,0.30456489,57571.0,57570.0,5.345447]
[1617531865453,0.10725655,57574.0,57570.0,5.91481148]
[1617531865954,0.10725655,57574.0,57573.0,1.0]
[1617531866354,0.10725655,57574.0,57573.0,2.65283136]
[1617531866756,0.10725655,57574.0,57573.0,3.22218071]
[1617531867054,0.10725655,57574.0,57573.0,3.32943726]
[1617531867755,0.10725655,57574.0,57573.0,2.32943726]
[1617531867955,0.10725655,57574.0,57573.0,2.76008791]
[1617531877169,0.10725655,57574.0,57573.0,1.37725655]
[1617531877770,0.10725655,57574.0,57573.0,6.02980622]
[1617531878373,0.10725655,57574.0,57573.0,6.2640174]
[1617531884675,0.10725655,57574.0,57573.0,5.2640174]
[1617531885575,0.10725655,57574.0,57573.0,5.12145407]
[1617531889084,0.10725655,57574.0,57573.0,1.78865407]
[1617531889285,3.08215655,57574.0,57573.0,1.78865407]
[1617531889488,3.08215655,57574.0,57573.0,1.69700622]
[1617531890486,3.21165655,57574.0,57573.0,1.69700622]
[1617531892489,3.21165655,57574.0,57573.0,1.58974967]
[1617531893090,3.21378849,57574.0,57573.0,1.58974967]
[1617531895095,0.23888849,57574.0,57573.0,1.58974967]
[1617531895497,0.23675655,57574.0,57573.0,1.58974967]
[1617531895703,0.10725655,57574.0,57573.0,4.09694967]
[1617531895894,0.10938754,57574.0,57573.0,4.09694967]
[1617531896501,0.10725655,57574.0,57573.0,4.18859987]
[1617531896901,0.24188782,57574.0,57573.0,1.68139987]
[1617531897299,0.23975655,57574.0,57573.0,4.77239987]
[1617531897702,0.24188771,57574.0,57573.0,4.77239987]
[1617531898103,0.10938771,57574.0,57573.0,4.77239987]
[1617531898804,0.11243558,57574.0,57573.0,4.77239987]
[1617531899406,0.11243558,57574.0,57573.0,1.68139987]
[1617531899812,0.11243558,57574.0,57573.0,1.58974967]
[1617531900608,0.11243558,57574.0,57573.0,1.74803967]
[1617531900807,0.11243558,57574.0,57573.0,4.49793967]
[1617531901811,0.10725655,57574.0,57573.0,4.5895886]
[1617531902211,0.10938972,57574.0,57573.0,4.5895886]
[1617531902711,0.11243578,57574.0,57573.0,4.5895886]
[1617531903311,0.11243578,57574.0,57573.0,4.69684515]
[1617531906615,0.10939086,57574.0,57573.0,4.69684515]
[1617531907215,0.11243987,57574.0,57573.0,4.69684515]
[1617531907519,0.10939086,57574.0,57573.0,4.69684515]
[1617531907716,0.10939086,57574.0,57573.0,1.94694515]
[1617531907916,0.10939086,57574.0,57573.0,1.78865515]
[1617531908420,0.11752171,57574.0,57573.0,1.69700622]
[1617531915232,0.10725655,57574.0,57573.0,1.69700622]
[1617531916932,0.11752179,57574.0,57573.0,1.69700622]
[1617531917533,0.41253767,57574.0,57573.0,1.69700622]
[1617531918534,0.53786767,57574.0,57573.0,1.69700622]
[1617531935156,0.41253767,57574.0,57573.0,1.69700622]
[1617531939461,0.77893742,57574.0,57573.0,1.69700622]
[1617531940161,1.02334241,57574.0,57573.0,1.69700622]
[1617531941864,0.65694266,57574.0,57573.0,1.69700622]
[1617531942465,0.41253767,57574.0,57573.0,1.69700622]
[1617531944668,3.21803767,57574.0,57573.0,1.69700622]
[1617531945070,3.21803767,57574.0,57573.0,1.58974967]
[1617531945470,3.78440777,57574.0,57573.0,1.58974967]
[1617531945872,4.78440777,57574.0,57573.0,1.58974967]
[1617531946078,4.78440777,57574.0,57573.0,1.08215364]
[1617531946272,6.28440777,57574.0,57573.0,1.08215364]
[1617531946472,6.73222125,57574.0,57573.0,1.08215364]
[1617531948071,3.92672125,57574.0,57573.0,1.08215364]
[1617531948473,3.72672125,57574.0,57573.0,1.08215364]
[1617531949273,2.22672125,57574.0,57573.0,1.08215364]
[1617531949473,1.22672125,57574.0,57573.0,1.08215364]
[1617531950675,2.22672125,57574.0,57573.0,0.63546914]
[1617531951075,2.47116557,57574.0,57573.0,0.63546914]
[1617531951374,6.01176557,57574.0,57573.0,0.63546914]
[1617531951578,7.51176557,57574.0,57573.0,0.63546914]
[1617531961585,7.51176557,57574.0,57573.0,0.27]
[1617531961985,6.51176557,57574.0,57572.0,0.01]
[1617531962386,7.51176557,57574.0,57573.0,0.27]
[1617531962586,6.14785655,57574.0,57572.0,0.27]
[1617531962786,7.26537445,57574.0,57572.0,0.27]
[1617531963086,0.0516,57573.0,57572.0,0.27]
[1617531963287,1.78025845,57573.0,57572.0,0.27]
[1617531963789,2.78025845,57573.0,57572.0,0.27]
[1617531964487,2.78025845,57573.0,57571.0,0.01]
[1617531964687,2.78025845,57573.0,57571.0,0.3749873]
[1617531964888,2.78025845,57573.0,57572.0,0.27]
[1617531965088,2.78025845,57573.0,57571.0,0.3649873]
[1617531965490,2.78025845,57573.0,57572.0,0.27]
[1617531965691,1.41827992,57573.0,57572.0,0.27]
[1617531966090,2.53579292,57573.0,57572.0,0.33111265]
[1617531970294,2.48419292,57573.0,57572.0,0.33111265]
[1617531970594,2.48419292,57573.0,57572.0,0.27]
[1617531970995,2.48419292,57573.0,57571.0,0.27]
[1617531971795,1.36172009,57572.0,57571.0,0.27]
[1617531972396,2.46487009,57572.0,57571.0,0.27]
[1617531980623,1.10315,57572.0,57571.0,0.27]
[1617531980819,2.58719381,57572.0,57571.0,0.27]
[1617531981220,2.22051922,57572.0,57571.0,0.27]
[1617531982222,1.22051922,57572.0,57571.0,0.27]
[1617531982421,2.22051922,57572.0,57571.0,0.27]
[1617531984624,5.72961922,57572.0,57571.0,0.27]
[1617531985234,6.09629378,57572.0,57571.0,0.27]
[1617531985629,6.09629378,57572.0,57564.0,0.44620129]
[1617531985630,6.09629378,57572.0,57568.0,0.36511303]
[1617531986032,0.61112837,57571.0,57570.0,0.27]
[1617531986433,0.61112837,57571.0,57569.0,0.27]
[1617531986629,1.72855394,57571.0,57570.0,0.27]
[1617531986929,1.72855394,57571.0,57569.0,0.27]
[1617531987432,1.11741812,57570.0,57569.0,0.27]
[1617531988632,1.11741812,57570.0,57567.0,0.01]
[1617531988832,1.11741812,57570.0,57568.0,0.36536548]
[1617531989031,1.11741812,57570.0,57569.0,0.27]
[1617531989233,0.61112837,57571.0,57569.0,0.36535699]
[1617531989633,0.81302991,57570.0,57569.0,0.63535699]
[1617531989833,0.81302991,57570.0,57569.0,0.36535699]
[1617531990235,0.81302991,57570.0,57569.0,0.63535699]
[1617531990433,0.81302991,57570.0,57569.0,0.27]
[1617531990834,0.81302991,57570.0,57567.0,0.01]
[1617531991233,1.11928398,57571.0,57569.0,0.27]
[1617531991433,1.11928398,57571.0,57566.0,0.36556055]
[1617531991635,0.81280952,57570.0,57567.0,0.27]
[1617531991833,0.81280952,57570.0,57565.0,0.36543854]
[1617531992035,0.10725655,57566.0,57564.0,0.36550888]
[1617531992434,0.81282478,57565.0,57564.0,0.36550888]
[1617531992935,0.81282478,57565.0,57564.0,0.37550888]
[1617531997237,0.36578131,57565.0,57564.0,0.37550888]
[1617531997738,0.81281984,57565.0,57564.0,0.37550888]
[1617532001040,0.36616696,57565.0,57564.0,0.37550888]
[1617532001640,0.81368108,57565.0,57564.0,0.37550888]
[1617532004146,0.10725655,57566.0,57564.0,0.37550888]
[1617532004348,0.81347865,57565.0,57564.0,0.37550888]
[1617532005450,1.05795399,57565.0,57564.0,0.43662772]
[1617532006251,0.24447534,57565.0,57564.0,0.43662772]
[1617532006652,1.05795064,57565.0,57564.0,0.43662772]
[1617532006952,0.8134753,57565.0,57564.0,0.43662772]
[1617532007453,1.0579505,57565.0,57564.0,0.43662772]